fUST/lending_fUST_20250419
["ID","MTS","AMOUNT","RATE_DAILY","PERIOD"]
[358378398,1745026246737,-500.0,0.00023287,2]
[358378399,1745026246746,-500.0,0.00023287,2]
[358378400,1745026246756,-500.0,0.00023287,2]
[358378401,1745026246768,-214.89880868,0.00023287,2]
[358378402,1745026246777,-500.0,0.00023287,2]
[358378403,1745026246787,-500.0,0.00023287,2]
[358378404,1745026246797,-500.0,0.00023287,2]
[358378405,1745026246807,-520.59,0.00023287,2]
[358378406,1745026246816,-500.0,0.00023287,2]
[358378407,1745026246826,-189.16914427,0.00023287,2]
[358378408,1745026246835,-500.0,0.00023287,2]
[358378409,1745026246845,-500.0,0.00023287,2]
[358378410,1745026246854,-1063.2,0.00023287,2]
[358378411,1745026246863,-500.0,0.00023287,2]
[358378412,1745026246873,-715.52,0.00023287,2]
[358378413,1745026246881,-500.0,0.00023287,2]
[358378414,1745026246888,-757.7,0.00023287,2]
[358378415,1745026246896,-500.0,0.00023287,2]
[358378416,1745026246904,-500.0,0.00023287,2]
[358378417,1745026246912,-500.0,0.00023287,2]
[358378418,1745026246920,-500.0,0.00023287,2]
[358378419,1745026246927,-500.0,0.00023287,2]
[358378420,1745026246936,-749.83,0.00023287,2]
[358378421,1745026246943,-500.0,0.00023287,2]
[358378422,1745026246951,-649.21,0.00023287,2]
[358378423,1745026246959,-536.0,0.00023287,2]
[358378424,1745026246967,-500.0,0.00023287,2]
[358378425,1745026246975,-572.38432458,0.00023287,2]
[358378426,1745026246985,-500.0,0.00023287,2]
[358378427,1745026246992,-500.0,0.00023287,2]
[358378428,1745026246999,-2690.95,0.00023287,2]
[358378429,1745026247007,-830.06,0.00023287,2]
[358378430,1745026247015,-1235.48,0.00023287,2]
[358378431,1745026247022,-500.0,0.00023287,2]
[358378432,1745026247029,-665.9,0.00023287,2]
[358378433,1745026247037,-591.21,0.00023287,2]
[358378434,1745026247046,-500.0,0.00023287,2]
[358378435,1745026247056,-500.0,0.00023287,2]
[358378436,1745026247065,-500.0,0.00023287,2]
[358378437,1745026247075,-500.0,0.00023287,2]
[358378438,1745026247084,-500.0,0.00023287,2]
[358378439,1745026247094,-500.0,0.00023287,2]
[358378440,1745026247103,-500.0,0.00023287,2]
[358378441,1745026247112,-606.68,0.00023287,2]
[358378442,1745026247122,-560.96,0.00023287,2]
[358378443,1745026247131,-500.0,0.00023287,2]
[358378444,1745026247141,-637.18,0.00023287,2]
[358378445,1745026247151,-500.0,0.00023287,2]
[358378446,1745026247160,-616.4,0.00023287,2]
[358378447,1745026247170,-518.75,0.00023287,2]
[358378448,1745026247179,-500.0,0.00023287,2]
[358378449,1745026247189,-787.91,0.00023287,2]
[358378450,1745026247199,-555.14,0.00023287,2]
[358378451,1745026247208,-514.23,0.00023287,2]
[358378452,1745026247218,-1205.35,0.00023287,2]
[358378453,1745026247227,-500.0,0.00023287,2]
[358378454,1745026247237,-584.69,0.00023287,2]
[358378455,1745026247246,-1473.47,0.00023287,2]
[358378456,1745026247255,-648.83,0.00023287,2]
[358378457,1745026247265,-500.0,0.00023287,2]
[358378458,1745026247275,-1427.38,0.00023287,2]
[358378459,1745026247284,-1008.04,0.00023287,2]
[358378460,1745026247293,-3478.39,0.00023287,2]
[358378461,1745026247303,-738.95,0.00023287,2]
[358378462,1745026247313,-705.87,0.00023287,2]
[358378463,1745026247322,-500.0,0.00023287,2]
[358378464,1745026247331,-597.65,0.00023287,2]
[358378465,1745026247340,-881.35,0.00023287,2]
[358378466,1745026247350,-500.0,0.00023287,2]
[358378467,1745026247360,-500.0,0.00023287,2]
[358378468,1745026247370,-553.78,0.00023287,2]
[358378469,1745026247379,-500.0,0.00023287,2]
[358378470,1745026247389,-500.0,0.00023287,2]
[358378471,1745026247399,-500.0,0.00023287,2]
[358378472,1745026247409,-500.0,0.00023287,2]
[358378473,1745026247419,-665.7,0.00023287,2]
[358378474,1745026247428,-500.0,0.00023287,2]
[358378475,1745026247438,-996.41,0.00023287,2]
[358378476,1745026247448,-500.0,0.00023287,2]
[358378477,1745026247458,-673.23,0.00023287,2]
[358378478,1745026247652,-727.21,0.00023287,2]
[358378479,1745026247663,-500.0,0.00023287,2]
[358378480,1745026247673,-1199.49,0.00023287,2]
[358378481,1745026247682,-500.0,0.00023287,2]
[358378482,1745026247692,-500.0,0.00023287,2]
[358378483,1745026247701,-500.0,0.00023287,2]
[358378484,1745026247711,-696.14,0.00023287,2]
[358378485,1745026247719,-713.98,0.00023287,2]
[358378486,1745026247728,-500.0,0.00023287,2]
[358378487,1745026247737,-500.0,0.00023287,2]
[358378488,1745026247746,-1076.56,0.00023287,2]
[358378489,1745026247755,-616.62,0.00023287,2]
[358378490,1745026247765,-611.07,0.00023287,2]
[358378491,1745026247775,-500.0,0.00023287,2]
[358378492,1745026247784,-764.28,0.00023287,2]
[358378493,1745026247794,-670.02,0.00023287,2]
[358378494,1745026247804,-500.0,0.00023287,2]
[358378495,1745026247814,-500.0,0.00023287,2]
[358378496,1745026247826,-533.3,0.00023287,2]
[358378497,1745026247835,-500.0,0.00023287,2]
[358378498,1745026247845,-557.95,0.00023287,2]
[358378499,1745026247854,-500.0,0.00023287,2]
[358378500,1745026247863,-593.47,0.00023287,2]
[358378501,1745026247876,-635.0,0.00023287,2]
[358378502,1745026247886,-1264.65,0.00023287,2]
[358378503,1745026247895,-500.0,0.00023287,2]
[358378504,1745026247906,-510.28,0.00023287,2]
[358378505,1745026247916,-500.0,0.00023287,2]
[358378506,1745026247925,-500.0,0.00023287,2]
[358378507,1745026247934,-500.0,0.00023287,2]
[358378508,1745026247944,-500.0,0.00023287,2]
[358378509,1745026247953,-500.0,0.00023287,2]
[358378510,1745026247963,-500.0,0.00023287,2]
[358378511,1745026247973,-500.0,0.00023287,2]
[358378512,1745026247983,-500.0,0.00023287,2]
[358378513,1745026247992,-500.0,0.00023287,2]
[358378514,1745026248001,-524.63,0.00023287,2]
[358378515,1745026248011,-1122.53,0.00023287,2]
[358378516,1745026248020,-1179.95,0.00023287,2]
[358378517,1745026248030,-500.0,0.00023287,2]
[358378518,1745026248040,-500.0,0.00023287,2]
[358378519,1745026248051,-576.89,0.00023287,2]
[358378520,1745026248061,-1626.71,0.00023287,2]
[358378521,1745026248071,-500.0,0.00023287,2]
[358378522,1745026248081,-942.54,0.00023287,2]
[358378523,1745026248091,-653.13,0.00023287,2]
[358378524,1745026248101,-905.98,0.00023287,2]
[358378525,1745026248111,-500.0,0.00023287,2]
[358378526,1745026248121,-1076.66,0.00023287,2]
[358378527,1745026248131,-500.0,0.00023287,2]
[358378528,1745026248141,-2368.99,0.00023287,2]
[358378529,1745026248151,-521.01,0.00023287,2]
[358378530,1745026248160,-4275.15,0.00023287,2]
[358378531,1745026248170,-1653.85,0.00023287,2]
[358378532,1745026248180,-1045.36,0.00023287,2]
[358378533,1745026248190,-1074.9,0.00023287,2]
[358378534,1745026248199,-500.0,0.00023287,2]
[358378535,1745026248209,-500.0,0.00023287,2]
[358378536,1745026248219,-500.0,0.00023287,2]
[358378537,1745026248229,-1765.93,0.00023287,2]
[358378538,1745026248239,-905.98,0.00023287,2]
[358378539,1745026248249,-567.14,0.00023287,2]
[358378540,1745026248258,-1089.4,0.00023287,2]
[358378541,1745026248268,-918.24,0.00023287,2]
[358378542,1745026248277,-2582.08,0.00023287,2]
[358378543,1745026248287,-500.0,0.00023287,2]
[358378544,1745026248296,-500.0,0.00023287,2]
[358378545,1745026248306,-558.26,0.00023287,2]
[358378546,1745026248316,-500.0,0.00023287,2]
[358378547,1745026248325,-513.55,0.00023287,2]
[358378548,1745026248335,-1085.26,0.00023287,2]
[358378549,1745026248345,-632.92,0.00023287,2]
[358378550,1745026248355,-668.31,0.00023287,2]
[358378551,1745026248365,-3172.25,0.00023287,2]
[358378552,1745026248374,-500.0,0.00023287,2]
[358378553,1745026248384,-1075.24,0.00023287,2]
[358378554,1745026248394,-500.0,0.00023287,2]
[358378555,1745026248404,-500.0,0.00023287,2]
[358378556,1745026248413,-500.0,0.00023287,2]
[358378557,1745026248423,-500.0,0.00023287,2]
[358378558,1745026248433,-500.0,0.00023287,2]
[358378559,1745026248442,-699.88,0.00023287,2]
[358378560,1745026248452,-500.0,0.00023287,2]
[358378561,1745026248462,-500.0,0.00023287,2]
[358378562,1745026248471,-500.0,0.00023287,2]
[358378563,1745026248481,-6071.36,0.00023287,2]
[358378564,1745026248491,-500.0,0.00023287,2]
[358378565,1745026248500,-500.0,0.00023287,2]
[358378566,1745026248510,-500.0,0.00023287,2]
[358378567,1745026248519,-520.16,0.00023287,2]
[358378568,1745026248529,-500.0,0.00023287,2]
[358378569,1745026248539,-500.0,0.00023287,2]
[358378570,1745026248549,-6905.23,0.00023287,2]
[358378571,1745026248559,-902.57,0.00023287,2]
[358378572,1745026248569,-500.0,0.00023287,2]
[358378573,1745026248578,-2225.39,0.00023287,2]
[358378574,1745026248588,-500.0,0.00023287,2]
[358378575,1745026248598,-500.0,0.00023287,2]
[358378576,1745026248607,-500.0,0.00023287,2]
[358378577,1745026248617,-1312.65,0.00023287,2]
[358378578,1745026248627,-611.59,0.00023287,2]
[358378579,1745026248637,-8901.82,0.00023287,2]
[358378580,1745026248647,-22249.86,0.00023287,2]
[358378581,1745026248657,-594.34,0.00023287,2]
[358378582,1745026248667,-500.0,0.00023287,2]
[358378583,1745026248677,-1153.77,0.00023287,2]
[358378584,1745026248687,-500.0,0.00023287,2]
[358378585,1745026248697,-500.0,0.00023287,2]
[358378586,1745026248706,-500.0,0.00023287,2]
[358378587,1745026248717,-681.59,0.00023287,2]
[358378588,1745026248727,-500.0,0.00023287,2]
[358378589,1745026248736,-717.0,0.00023287,2]
[358378590,1745026248746,-965.48,0.00023287,2]
[358378591,1745026248755,-500.0,0.00023287,2]
[358378592,1745026248765,-500.0,0.00023287,2]
[358378593,1745026248775,-924.62,0.00023287,2]
[358378594,1745026248785,-707.58,0.00023287,2]
[358378595,1745026248794,-500.0,0.00023287,2]
[358378596,1745026248804,-500.0,0.00023287,2]
[358378597,1745026248814,-500.0,0.00023287,2]
[358378598,1745026248825,-500.0,0.00023287,2]
[358378599,1745026248836,-845.73,0.00023287,2]
[358378600,1745026248846,-763.0,0.00023287,2]
[358378601,1745026248858,-1110.59,0.00023287,2]
[358378602,1745026248868,-500.0,0.00023287,2]
[358378603,1745026248877,-500.0,0.00023287,2]
[358378604,1745026248887,-522.58,0.00023287,2]
[358378605,1745026248897,-500.0,0.00023287,2]
[358378606,1745026248907,-500.0,0.00023287,2]
[358378607,1745026248917,-500.0,0.00023287,2]
[358378608,1745026248927,-500.0,0.00023287,2]
[358378609,1745026248936,-1282.06,0.00023287,2]
[358378610,1745026248946,-500.0,0.00023287,2]
[358378611,1745026248955,-500.0,0.00023287,2]
[358378612,1745026248964,-344.38452294,0.00023287,2]
[358378613,1745026248973,-500.0,0.00023287,2]
[358378614,1745026248983,-1020.57,0.00023287,2]
[358378615,1745026248992,-500.0,0.00023287,2]
[358378616,1745026249002,-500.0,0.00023287,2]
[358378617,1745026249012,-1695.01,0.00023287,2]
[358378618,1745026249022,-715.61,0.00023287,2]
[358378619,1745026249032,-500.0,0.00023287,2]
[358378620,1745026249042,-589.55,0.00023287,2]
[358378621,1745026249052,-1066.81,0.00023287,2]
[358378622,1745026249062,-1362.98,0.00023287,2]
[358378623,1745026249072,-500.0,0.00023287,2]
[358378624,1745026249082,-929.88,0.00023287,2]
[358378625,1745026249092,-731.93,0.00023287,2]
[358378626,1745026249102,-500.0,0.00023287,2]
[358378627,1745026249112,-887.88,0.00023287,2]
[358378628,1745026249122,-521.11,0.00023287,2]
[358378629,1745026249132,-675.3,0.00023287,2]
[358378630,1745026249142,-1034.25,0.00023287,2]
[358378631,1745026249152,-500.0,0.00023287,2]
[358378632,1745026249161,-817.89,0.00023287,2]
[358378633,1745026249172,-1353.54,0.00023287,2]
[358378634,1745026249182,-228.73321849,0.00023287,2]
[358378635,1745026249191,-500.0,0.00023336,2]
[358378636,1745026249202,-500.0,0.00023378,2]
[358378637,1745026249211,-500.0,0.00023422,2]
[358378638,1745026249220,-500.0,0.00023431,2]
[358378639,1745026249230,-165.6272122,0.00023509,2]
[358378640,1745026249239,-193.89940789,0.00023513,2]
[358378641,1745026249248,-500.0,0.00023535,2]
[358378642,1745026249257,-500.07017538,0.00023561,2]
[358378643,1745026249266,-601.94526432,0.00023561,2]
[358378644,1745026249276,-900.02,0.00023561,2]
[358378645,1745026249285,-500.0,0.00023561,2]
[358378646,1745026249295,-500.0,0.00023561,2]
[358378647,1745026249304,-500.0,0.00023561,2]
[358378648,1745026249314,-500.0,0.00023561,2]
[358378649,1745026249324,-174.2718145,0.00023561,2]
[358378650,1745026249334,-500.0,0.00023561,2]
[358378651,1745026249344,-500.0,0.00023561,2]
[358378652,1745026249354,-500.0,0.00023561,2]
[358378653,1745026249363,-500.0,0.00023561,2]
[358378654,1745026249373,-520.59,0.00023561,2]
[358378655,1745026249383,-500.0,0.00023561,2]
[358378656,1745026249393,-500.0,0.00023561,2]
[358378657,1745026249402,-500.0,0.00023561,2]
[358378658,1745026249412,-1063.2,0.00023561,2]
[358378659,1745026249422,-500.0,0.00023561,2]
[358378660,1745026249432,-715.52,0.00023561,2]
[358378661,1745026249442,-500.0,0.00023561,2]
[358378662,1745026249452,-757.7,0.00023561,2]
[358378663,1745026249462,-500.0,0.00023561,2]
[358378664,1745026249472,-500.0,0.00023561,2]
[358378665,1745026249483,-500.0,0.00023561,2]
[358378666,1745026249493,-435.67238993,0.00023561,2]
[358378667,1745026249502,-500.0,0.00023561,2]
[358378668,1745026249512,-749.83,0.00023561,2]
[358378669,1745026249522,-500.0,0.00023561,2]
[358378670,1745026249531,-649.21,0.00023561,2]
[358378671,1745026249541,-536.0,0.00023561,2]
[358378672,1745026249550,-500.0,0.00023561,2]
[358378673,1745026249559,-500.0,0.00023561,2]
[358378674,1745026249568,-500.0,0.00023561,2]
[358378675,1745026249577,-2690.95,0.00023561,2]
[358378676,1745026249587,-830.06,0.00023561,2]
[358378677,1745026249596,-1235.48,0.00023561,2]
[358378678,1745026249605,-500.0,0.00023561,2]
[358378679,1745026249614,-665.9,0.00023561,2]
[358378680,1745026249623,-591.21,0.00023561,2]
[358378681,1745026249632,-500.0,0.00023561,2]
[358378682,1745026249641,-500.0,0.00023561,2]
[358378683,1745026249650,-500.0,0.00023561,2]
[358378684,1745026249659,-500.0,0.00023561,2]
[358378685,1745026249668,-500.0,0.00023561,2]
[358378686,1745026249677,-500.0,0.00023561,2]
[358378687,1745026249686,-500.0,0.00023561,2]
[358378688,1745026249695,-606.68,0.00023561,2]
[358378689,1745026249704,-560.96,0.00023561,2]
[358378690,1745026249713,-500.0,0.00023561,2]
[358378691,1745026249723,-637.18,0.00023561,2]
[358378692,1745026249732,-500.0,0.00023561,2]
[358378693,1745026249741,-616.4,0.00023561,2]
[358378694,1745026249751,-518.75,0.00023561,2]
[358378695,1745026249762,-500.0,0.00023561,2]
[358378696,1745026249772,-787.91,0.00023561,2]
[358378697,1745026249782,-555.14,0.00023561,2]
[358378698,1745026249792,-1205.35,0.00023561,2]
[358378699,1745026249801,-514.23,0.00023561,2]
[358378700,1745026249810,-500.0,0.00023561,2]
[358378701,1745026249819,-584.69,0.00023561,2]
[358378702,1745026249833,-1473.47,0.00023561,2]
[358378703,1745026249842,-648.83,0.00023561,2]
[358378704,1745026249852,-329.00929867,0.00023561,2]
[358378705,1745026249861,-1222.98764021,0.00023561,2]
[358378706,1745026249878,-204.39235979,0.00023561,2]
[358378707,1745026249887,-1008.04,0.00023561,2]
[358378708,1745026249897,-3478.39,0.00023561,2]
[358378709,1745026249909,-738.95,0.00023561,2]
[358378710,1745026249919,-705.87,0.00023561,2]
[358378711,1745026249929,-500.0,0.00023561,2]
[358378712,1745026249939,-597.65,0.00023561,2]
[358378713,1745026249948,-881.35,0.00023561,2]
[358378714,1745026249958,-500.0,0.00023561,2]
[358378715,1745026249968,-500.0,0.00023561,2]
[358378716,1745026249978,-553.78,0.00023561,2]
[358378717,1745026249987,-207.74155688,0.00023561,2]
[358378718,1745026249999,-292.25844312,0.00023561,2]
[358378719,1745026250009,-500.0,0.00023561,2]
[358378720,1745026250019,-500.0,0.00023561,2]
[358378721,1745026250028,-500.0,0.00023561,2]
[358378722,1745026250037,-665.7,0.00023561,2]
[358378723,1745026250047,-500.0,0.00023561,2]
[358378724,1745026250057,-864.15068704,0.00023561,2]
[358378729,1745027443487,-132.25931296,0.00023561,2]
[358378730,1745027443497,-500.0,0.00023561,2]
[358378731,1745027443507,-673.23,0.00023561,2]
[358378732,1745027443517,-727.21,0.00023561,2]
[358378733,1745027443526,-500.0,0.00023561,2]
[358378734,1745027443536,-1058.73238132,0.00023561,2]
[358378738,1745027445997,-140.75761868,0.00023561,2]
[358378739,1745027446007,-500.0,0.00023561,2]
[358378740,1745027446017,-500.0,0.00023561,2]
[358378741,1745027446027,-30.09192557,0.00023561,2]
[358378742,1745027446038,-285.98770573,0.00023561,2]
[358378743,1745027446080,-183.9203687,0.00023561,2]
[358378744,1745027446090,-696.14,0.00023561,2]
[358378745,1745027446099,-713.98,0.00023561,2]
[358378746,1745027446109,-500.0,0.00023561,2]
[358378747,1745027446119,-500.0,0.00023561,2]
[358378748,1745027446128,-1076.56,0.00023561,2]
[358378749,1745027446138,-616.62,0.00023561,2]
[358378750,1745027446148,-611.07,0.00023561,2]
[358378751,1745027446158,-500.0,0.00023561,2]
[358378752,1745027446169,-764.28,0.00023561,2]
[358378753,1745027446179,-670.02,0.00023561,2]
[358378754,1745027446190,-500.0,0.00023561,2]
[358378755,1745027446200,-500.0,0.00023561,2]
[358378756,1745027446210,-533.3,0.00023561,2]
[358378757,1745027446220,-500.0,0.00023561,2]
[358378758,1745027446230,-557.95,0.00023561,2]
[358378759,1745027446240,-500.0,0.00023561,2]
[358378761,1745027446250,-593.47,0.00023561,2]
[358378763,1745027446259,-635.0,0.00023561,2]
[358378765,1745027446269,-1264.65,0.00023561,2]
[358378766,1745027446278,-500.0,0.00023561,2]
[358378767,1745027446288,-510.28,0.00023561,2]
[358378768,1745027446298,-500.0,0.00023561,2]
[358378769,1745027446308,-500.0,0.00023561,2]
[358378770,1745027446321,-500.0,0.00023561,2]
[358378771,1745027446331,-500.0,0.00023561,2]
[358378772,1745027446341,-500.0,0.00023561,2]
[358378773,1745027446351,-500.0,0.00023561,2]
[358378774,1745027446361,-253.21435356,0.00023561,2]
[358378775,1745027446371,-500.0,0.00023561,2]
[358378776,1745027446381,-500.0,0.00023561,2]
[358378777,1745027446391,-524.63,0.00023561,2]
[358378778,1745027446401,-1122.53,0.00023561,2]
[358378779,1745027446411,-1179.95,0.00023561,2]
[358378780,1745027446421,-443.82554271,0.00023561,2]
[358378781,1745027446431,-500.0,0.00023561,2]
[358378782,1745027446442,-576.89,0.00023561,2]
[358378783,1745027446453,-1626.71,0.00023561,2]
[358378784,1745027446465,-500.0,0.00023561,2]
[358378785,1745027446476,-942.54,0.00023561,2]
[358378786,1745027446487,-653.13,0.00023561,2]
[358378787,1745027446497,-905.98,0.00023561,2]
[358378788,1745027446507,-500.0,0.00023561,2]
[358378789,1745027446516,-1076.66,0.00023561,2]
[358378790,1745027446526,-500.0,0.00023561,2]
[358378791,1745027446536,-2368.99,0.00023561,2]
[358378792,1745027446547,-521.01,0.00023561,2]
[358378793,1745027446558,-4275.15,0.00023561,2]
[358378794,1745027446568,-1653.85,0.00023561,2]
[358378795,1745027446577,-1045.36,0.00023561,2]
[358378796,1745027446587,-1074.9,0.00023561,2]
[358378797,1745027446597,-500.0,0.00023561,2]
[358378798,1745027446606,-500.0,0.00023561,2]
[358378799,1745027446616,-500.0,0.00023561,2]
[358378800,1745027446625,-1765.93,0.00023561,2]
[358378801,1745027446635,-905.98,0.00023561,2]
[358378802,1745027446645,-567.14,0.00023561,2]
[358378803,1745027446655,-1089.4,0.00023561,2]
[358378804,1745027446664,-918.24,0.00023561,2]
[358378805,1745027446674,-2582.08,0.00023561,2]
[358378806,1745027446683,-500.0,0.00023561,2]
[358378807,1745027446693,-500.0,0.00023561,2]
[358378808,1745027446703,-558.26,0.00023561,2]
[358378809,1745027446713,-500.0,0.00023561,2]
[358378810,1745027446727,-513.55,0.00023561,2]
[358378811,1745027446737,-1085.26,0.00023561,2]
[358378812,1745027446747,-632.92,0.00023561,2]
[358378813,1745027446757,-668.31,0.00023561,2]
[358378814,1745027446767,-3172.25,0.00023561,2]
[358378815,1745027446779,-500.0,0.00023561,2]
[358378816,1745027446788,-1075.24,0.00023561,2]
[358378817,1745027446800,-500.0,0.00023561,2]
[358378818,1745027446810,-500.0,0.00023561,2]
[358378819,1745027446821,-500.0,0.00023561,2]
[358378820,1745027446831,-500.0,0.00023561,2]
[358378821,1745027446840,-500.0,0.00023561,2]
[358378822,1745027446850,-699.88,0.00023561,2]
[358378823,1745027446859,-500.0,0.00023561,2]
[358378824,1745027446869,-500.0,0.00023561,2]
[358378825,1745027446878,-500.0,0.00023561,2]
[358378826,1745027446888,-6071.36,0.00023561,2]
[358378827,1745027446898,-500.0,0.00023561,2]
[358378828,1745027446907,-500.0,0.00023561,2]
[358378829,1745027446917,-500.0,0.00023561,2]
[358378830,1745027446927,-520.16,0.00023561,2]
[358378831,1745027446937,-500.0,0.00023561,2]
[358378832,1745027446947,-500.0,0.00023561,2]
[358378833,1745027446956,-6905.23,0.00023561,2]
[358378834,1745027446966,-500.0,0.00023561,2]
[358378835,1745027446976,-902.57,0.00023561,2]
[358378836,1745027446986,-2225.39,0.00023561,2]
[358378837,1745027446996,-500.0,0.00023561,2]
[358378838,1745027447006,-500.0,0.00023561,2]
[358378839,1745027447015,-1312.65,0.00023561,2]
[358378840,1745027447025,-611.59,0.00023561,2]
[358378841,1745027447035,-8901.82,0.00023561,2]
[358378842,1745027447045,-12931.43425816,0.00023561,2]
[358378923,1745029725986,9155.48226571,0.000175,4]
[358378963,1745029838758,-700.55,0.00019461,7]
[358378964,1745029838768,-14922.52176896,0.00019957,2]
[358379029,1745029843537,-3027.65114496,0.00019957,2]
[358379036,1745029846600,-13048.95875454,0.00019957,2]
[358379037,1745029846747,-1271.0,0.00019957,2]
[358379063,1745030893978,249.473417,0.00017948,2]
[358379153,1745031043671,-0.11442595,0.000185,2]
[358379179,1745031046685,-3050.1635784,0.000185,2]
[358379180,1745031046695,-161.72406918,0.00018846,2]
[358379181,1745031046705,-205.64129129,0.00018847,2]
[358379182,1745031046715,-560.21934862,0.00018848,2]
[358379183,1745031046725,-1788.11946677,0.000189,2]
[358379184,1745031046735,-152.84054437,0.00018937,2]
[358379185,1745031046745,-300.0,0.00018945,2]
[358379186,1745031046755,-189.39718076,0.00018945,2]
[358379187,1745031046766,-237.0852638,0.00018945,2]
[358379188,1745031046777,-500.0,0.00018945,2]
[358379189,1745031046787,-727.40176233,0.00018945,2]
[358379190,1745031046797,-727.40176233,0.00018945,2]
[358379191,1745031046808,-500.0,0.00018945,2]
[358379192,1745031046818,-727.40176233,0.00018945,2]
[358379193,1745031046827,-410.21271945,0.00018945,2]
[358379194,1745031046838,-727.40176233,0.00018945,2]
[358379195,1745031046847,-727.40176233,0.00018945,2]
[358379196,1745031046856,-727.40176233,0.00018945,2]
[358379197,1745031046866,-727.40176233,0.00018945,2]
[358379198,1745031046875,-727.40176233,0.00018945,2]
[358379199,1745031046885,-727.40176233,0.00018945,2]
[358379200,1745031046897,-727.40176233,0.00018945,2]
[358379201,1745031046908,-727.40176233,0.00018945,2]
[358379202,1745031046918,-727.40176233,0.00018945,2]
[358379203,1745031046928,-727.40176233,0.00018945,2]
[358379204,1745031046937,-727.40176233,0.00018945,2]
[358379205,1745031046949,-727.40176233,0.00018945,2]
[358379206,1745031046958,-727.40176233,0.00018945,2]
[358379207,1745031046968,-727.40176233,0.00018945,2]
[358379208,1745031046978,-727.40176233,0.00018945,2]
[358379209,1745031046988,-727.40176233,0.00018945,2]
[358379210,1745031046998,-727.40176233,0.00018945,2]
[358379211,1745031047007,-727.40176233,0.00018945,2]
[358379212,1745031047017,-727.40176233,0.00018945,2]
[358379213,1745031047027,-727.40176233,0.00018945,2]
[358379214,1745031047037,-727.40176233,0.00018945,2]
[358379215,1745031047047,-727.40176233,0.00018945,2]
[358379216,1745031047057,-727.40176233,0.00018945,2]
[358379217,1745031047066,-727.40176233,0.00018945,2]
[358379218,1745031047076,-727.40176233,0.00018945,2]
[358379219,1745031047086,-727.40176233,0.00018945,2]
[358379220,1745031047096,-727.40176233,0.00018945,2]
[358379221,1745031047106,-727.40176233,0.00018945,2]
[358379222,1745031047116,-727.40176233,0.00018945,2]
[358379223,1745031047125,-727.40176233,0.00018945,2]
[358379224,1745031047135,-727.40176233,0.00018945,2]
[358379225,1745031047145,-280.0023917,0.00018945,2]
[358379226,1745031047162,-447.39937063,0.00018945,2]
[358379227,1745031047171,-127.08012355,0.00018945,2]
[358379228,1745031047182,-600.32163878,0.00018945,2]
[358379229,1745031047192,-727.40176233,0.00018945,2]
[358379230,1745031047202,-202.46032114,0.00018945,2]
[358379236,1745031603165,1400.62,0.0001801,2]
[358379240,1745031860106,599.38,0.00018011,2]
[358379241,1745031860140,2000.0,0.00018011,2]
[358379242,1745031860698,-207.4,0.00018011,2]
[358379243,1745031904091,-300.0,0.0001801,2]